fUST/lending_fUST_20250112
["ID","MTS","AMOUNT","RATE_DAILY","PERIOD"]
[348629969,1736689840916,-675.95,0.00019452,3]
[348629971,1736689840927,-500.0,0.00019473,2]
[348629973,1736689840936,-500.0,0.00019473,2]
[348629975,1736689840947,-500.0,0.00019473,2]
[348629977,1736689840956,-500.0,0.00019499,3]
[348629979,1736689840966,-749.14,0.00019499,3]
[348629981,1736689840975,-500.0,0.000195,2]
[348629983,1736689840984,-500.0,0.000195,2]
[348629985,1736689840993,-500.0,0.000195,2]
[348629987,1736689841002,-500.0,0.000195,2]
[348629989,1736689841011,-500.0,0.000195,2]
[348629991,1736689841020,-390.0,0.000195,2]
[348629993,1736689841029,-211.083,0.000195,2]
[348629995,1736689841038,-151.0,0.000195,2]
[348629997,1736689841048,-228.62637213,0.000195,2]
[348629999,1736689841057,-420.0,0.00019532,2]
[348630001,1736689841066,-151.0,0.000196,2]
[348630003,1736689841075,-500.0,0.00019625,3]
[348630005,1736689841084,-3000.0,0.00019626,2]
[348630007,1736689841093,-1369.54381588,0.000197,2]
[348630009,1736689841102,-1369.54381587,0.000197,2]
[348630011,1736689841111,-1369.54381587,0.000197,2]
[348630013,1736689841120,-1369.54381587,0.000197,2]
[348630015,1736689841129,-2000.0,0.000197,2]
[348630017,1736689841138,-226.258969,0.000197,2]
[348630019,1736689841147,-226.258969,0.000197,2]
[348630021,1736689841156,-151.0,0.000197,2]
[348630023,1736689841165,-1005.31142274,0.00019714,2]
[348630025,1736689841175,-1610.22,0.0001972,3]
[348630027,1736689841184,-1000.0,0.00019721,2]
[348630029,1736689841193,-512.48,0.00019725,3]
[348630031,1736689841202,-749.14,0.00019725,3]
[348630033,1736689841211,-749.14,0.00019725,3]
[348630035,1736689841220,-749.14,0.00019725,3]
[348630037,1736689841229,-749.14,0.00019725,3]
[348630039,1736689841239,-749.14,0.00019725,3]
[348630041,1736689841248,-749.14,0.00019725,3]
[348630043,1736689841257,-749.14,0.00019725,3]
[348630045,1736689841266,-749.22,0.00019725,3]
[348630047,1736689841275,-500.0,0.00019725,3]
[348630049,1736689841284,-269.08140281,0.00019725,3]
[348630051,1736689841295,-1610.22,0.00019725,3]
[348630053,1736689841304,-1610.22,0.00019725,3]
[348630055,1736689841313,-1610.22,0.00019725,3]
[348630057,1736689841323,-1610.22,0.00019725,3]
[348630059,1736689841332,-1610.22,0.00019725,3]
[348630061,1736689841341,-1610.22,0.00019725,3]
[348630063,1736689841350,-1610.22,0.00019725,3]
[348630065,1736689841359,-1610.42752206,0.00019725,3]
[348630067,1736689841368,-500.0,0.00019726,3]
[348630069,1736689841377,-500.0,0.00019726,3]
[348630071,1736689841386,-151.0,0.00019726,2]
[348630073,1736689841396,-226.258969,0.00019726,2]
[348630075,1736689841405,-226.258977,0.00019726,2]
[348630077,1736689841414,-668.7,0.00019726,3]
[348630079,1736689841424,-944.9,0.00019726,3]
[348630082,1736689841434,-500.0,0.00019726,3]
[348630084,1736689841443,-270.91116999,0.00019726,3]
[348630086,1736689841452,-631.68,0.00019726,3]
[348630088,1736689841462,-500.0,0.00019726,3]
[348630090,1736689841471,-500.0,0.00019726,3]
[348630092,1736689841480,-500.0,0.00019726,3]
[348630094,1736689841490,-500.0,0.00019726,3]
[348630096,1736689841499,-500.0,0.00019726,3]
[348630098,1736689841508,-751.45,0.00019726,3]
[348630100,1736689841518,-500.0,0.00019726,3]
[348630102,1736689841527,-500.0,0.00019726,3]
[348630104,1736689841536,-500.0,0.00019726,3]
[348630106,1736689841546,-500.0,0.00019726,3]
[348630108,1736689841555,-500.0,0.00019726,3]
[348630110,1736689841564,-503.00266662,0.00019726,3]
[348630112,1736689841574,-771.54,0.00019726,3]
[348630114,1736689841583,-639.84,0.00019726,3]
[348630116,1736689841592,-500.0,0.00019726,3]
[348630118,1736689841601,-500.0,0.00019726,3]
[348630120,1736689841610,-500.0,0.00019726,3]
[348630121,1736689841619,-500.0,0.00019726,3]
[348630123,1736689841627,-188.28744072,0.00019726,3]
[348630125,1736689841636,-502.93336818,0.00019726,3]
[348630127,1736689841646,-502.66409176,0.00019726,3]
[348630129,1736689841655,-5332.4,0.00019726,3]
[348630131,1736689841665,-500.0,0.00019726,3]
[348630133,1736689841674,-500.0,0.00019726,3]
[348630135,1736689841683,-500.0,0.00019726,3]
[348630137,1736689841692,-500.0,0.00019726,3]
[348630139,1736689841701,-500.0,0.00019726,3]
[348630141,1736689841711,-642.62519808,0.00019726,3]
[348630143,1736689841720,-500.0,0.00019726,3]
[348630145,1736689841729,-498.03574134,0.00019726,3]
[348630147,1736689841738,-500.0,0.00019726,3]
[348630149,1736689841747,-744.73,0.00019726,3]
[348630151,1736689841757,-4930.02,0.00019726,3]
[348630154,1736689841772,-1104.87,0.00019726,3]
[348630155,1736689841781,-501.83909521,0.00019726,3]
[348630158,1736689841791,-500.0,0.00019726,3]
[348630159,1736689841800,-429.27163242,0.00019726,3]
[348630162,1736689841812,-500.0,0.00019726,3]
[348630164,1736689841822,-628.79,0.00019726,3]
[348630166,1736689841831,-500.0,0.00019726,3]
[348630168,1736689841841,-500.0,0.00019726,3]
[348630170,1736689841851,-500.0,0.00019726,3]
[348630172,1736689841860,-500.0,0.00019726,3]
[348630173,1736689841869,-500.0,0.00019726,3]
[348630175,1736689841879,-2615.15,0.00019726,3]
[348630178,1736689841888,-1028.57,0.00019726,3]
[348630180,1736689841897,-500.0,0.00019726,3]
[348630182,1736689841907,-500.0,0.00019726,3]
[348630184,1736689841916,-24798.72,0.00019726,3]
[348630186,1736689841925,-964.09,0.00019726,3]
[348630187,1736689841935,-1093.05,0.00019726,3]
[348630189,1736689841944,-555.51,0.00019726,3]
[348630192,1736689841953,-1110.54,0.00019726,3]
[348630194,1736689841963,-644.21,0.00019726,3]
[348630196,1736689841975,-951.56,0.00019726,3]
[348630198,1736689841984,-500.0,0.00019726,3]
[348630200,1736689841993,-5709.53,0.00019726,2]
[348630202,1736689842002,-500.0,0.00019726,3]
[348630204,1736689842012,-500.0,0.00019726,3]
[348630206,1736689842021,-1108.38,0.00019726,3]
[348630208,1736689842030,-500.0,0.00019726,3]
[348630210,1736689842040,-3689.03,0.00019726,3]
[348630212,1736689842048,-500.0,0.00019726,3]
[348630214,1736689842057,-500.0,0.00019726,3]
[348630215,1736689842068,-784.19,0.00019726,3]
[348630218,1736689842078,-500.0,0.00019726,3]
[348630220,1736689842087,-500.0,0.00019726,3]
[348630222,1736689842096,-637.33465971,0.00019726,3]
[348630245,1736689842300,-374.20534029,0.00019726,3]
[348630247,1736689842310,-500.0,0.00019726,3]
[348630249,1736689842319,-500.0,0.00019726,3]
[348630251,1736689842329,-500.0,0.00019726,3]
[348630253,1736689842338,-500.0,0.00019726,3]
[348630255,1736689842348,-500.0,0.00019726,3]
[348630257,1736689842357,-731.29,0.00019726,3]
[348630259,1736689842366,-2128.77,0.00019726,3]
[348630261,1736689842376,-500.0,0.00019726,3]
[348630263,1736689842386,-500.0,0.00019726,3]
[348630265,1736689842394,-2677.5,0.00019726,3]
[348630267,1736689842404,-1207.73,0.00019726,3]
[348630270,1736689842413,-1038.7,0.00019726,3]
[348630272,1736689842422,-500.0,0.00019726,3]
[348630274,1736689842431,-1046.5,0.00019726,3]
[348630276,1736689842440,-500.0,0.00019726,3]
[348630278,1736689842450,-1037.1,0.00019726,3]
[348630280,1736689842459,-500.0,0.00019726,2]
[348630282,1736689842468,-708.92,0.00019726,3]
[348630284,1736689842477,-500.0,0.00019726,3]
[348630285,1736689842488,-2351.95,0.00019726,3]
[348630287,1736689842498,-500.0,0.00019726,3]
[348630289,1736689842508,-863.55,0.00019726,3]
[348630292,1736689842517,-495.64079203,0.00019726,3]
[348630320,1736689842720,-5000.0,0.00018986,2]
[348630322,1736689842729,-500.0,0.00019178,2]
[348630324,1736689842739,-3504.00920797,0.00019726,3]
[348630329,1736689842748,-573.73,0.00019726,3]
[348630332,1736689842758,-1066.54,0.00019726,3]
[348630337,1736689842770,-500.0,0.00019726,3]
[348630340,1736689842779,-500.0,0.00019726,3]
[348630343,1736689842788,-675.95,0.00019726,3]
[348630346,1736689842798,-155.0,0.00019739,2]
[348630349,1736689842808,-155.0,0.00019739,2]
[348630352,1736689842818,-155.0,0.00019739,2]
[348630355,1736689842827,-1000.0,0.00019764,2]
[348630357,1736689842837,-1000.0,0.00019766,2]
[348630359,1736689842847,-519.69973472,0.00019773,2]
[348630361,1736689842856,-500.0,0.00019773,2]
[348630363,1736689842866,-1000.0,0.00019795,2]
[348630365,1736689842875,-2000.0,0.000198,2]
[348630367,1736689842885,-151.0,0.000198,2]
[348630369,1736689842894,-151.0,0.000198,2]
[348630371,1736689842904,-1000.0,0.00019808,2]
[348630373,1736689842913,-1000.0,0.00019863,2]
[348630375,1736689842923,-2000.0,0.000199,2]
[348630377,1736689842932,-151.0,0.000199,2]
[348630379,1736689842942,-291.48493167,0.000199,2]
[348630381,1736689842951,-20027.00844983,0.00019962,2]
[348630383,1736689842960,-857.19646363,0.00019969,2]
[348630385,1736689842969,-500.0,0.00019973,2]
[348630387,1736689842979,-500.0,0.00019973,2]
[348630389,1736689842989,-504.73076203,0.00019973,2]
[348630391,1736689842998,-174.7137594,0.00019973,2]
[348630393,1736689843008,-4245.49995691,0.0002,5]
[348630409,1736689843150,-2927.5969737,0.0002,5]
[348630412,1736689843164,-36784.47926296,0.0002,5]
[348630487,1736690690842,189.410192,0.00013973,2]
[348630555,1736691032602,-462.1105,0.00016036,2]
[348630566,1736691032690,-4537.8895,0.00016036,2]
[348630568,1736691032700,-8512.3583443,0.00016198,2]
[348630570,1736691032709,-300.0,0.00016433,2]
[348630572,1736691032718,-5000.0,0.00016434,2]
[348630574,1736691032727,-420.0,0.00017959,2]
[348630576,1736691032737,-3691.7322705,0.00018018,2]
[348630578,1736691032746,-227.451001,0.00018116,2]
[348630580,1736691032756,-243.42330317,0.000189,2]
[348630582,1736691032765,-11197.1758944,0.00018978,2]
[348630584,1736691032774,-544.641,0.00019,2]
[348630586,1736691032783,-353.2648614,0.00019041,2]
[348630588,1736691032793,-353.2648614,0.00019041,2]
[348630606,1736691032934,-353.2648614,0.00019041,2]
[348630608,1736691032943,-353.2648614,0.00019041,2]
[348630610,1736691032954,-782.6265154,0.00019041,2]
[348630612,1736691032963,-1512.00155365,0.00019073,2]
[348630614,1736691032972,-3000.0,0.00019078,2]
[348630616,1736691032982,-500.0,0.00019173,2]
[348630618,1736691032991,-500.0,0.00019173,2]
[348630620,1736691033001,-500.0,0.00019173,2]
[348630622,1736691033011,-500.0,0.00019177,2]
[348630624,1736691033020,-155.5709323,0.00019177,2]
[348630626,1736691033030,-177.30438372,0.00019177,2]
[348630628,1736691033040,-500.0,0.00019177,2]
[348630630,1736691033050,-500.0,0.00019177,2]
[348630632,1736691033059,-500.0,0.00019177,2]
[348630634,1736691033068,-500.0,0.00019177,2]
[348630636,1736691033077,-500.0,0.00019177,2]
[348630638,1736691033087,-500.0,0.00019177,2]
[348630640,1736691033097,-571.5204621,0.00019177,2]
[348630641,1736691033107,-451.6304251,0.00019177,2]
[348630642,1736691033116,-500.0,0.00019177,2]
[348630644,1736691033126,-500.0,0.00019177,2]
[348630646,1736691033136,-500.0,0.00019177,2]
[348630648,1736691033146,-500.0,0.00019177,2]
[348630650,1736691033155,-500.0,0.00019177,2]
[348630652,1736691033165,-500.0,0.00019177,2]
[348630654,1736691033175,-500.0,0.00019177,2]
[348630656,1736691033185,-500.0,0.00019177,2]
[348630658,1736691033194,-500.0,0.00019177,2]
[348630660,1736691033205,-500.0,0.00019177,2]
[348630662,1736691033214,-500.0,0.00019177,2]
[348630664,1736691033224,-500.0,0.00019177,2]
[348630666,1736691033234,-500.0,0.00019177,2]
[348630668,1736691033243,-500.0,0.00019177,2]
[348630670,1736691033252,-163.31535524,0.00019177,2]
[348630672,1736691033262,-500.0,0.00019177,2]
[348630674,1736691033272,-500.0,0.00019177,2]
[348630675,1736691033281,-157.13896549,0.00019177,2]
[348630676,1736691033291,-500.0,0.00019177,2]
[348630677,1736691033301,-500.0,0.00019177,2]
[348630678,1736691033310,-500.0,0.00019177,2]
[348630679,1736691033320,-500.0,0.00019177,2]
[348630680,1736691033330,-500.0,0.00019177,2]
[348630681,1736691033340,-500.0,0.00019177,2]
[348630682,1736691033349,-512.81086006,0.00019177,2]
[348630683,1736691033359,-500.0,0.00019177,2]
[348630684,1736691033368,-300.0,0.00019177,2]
[348630685,1736691033378,-412.08391985,0.00019177,2]
[348630686,1736691033387,-500.0,0.00019178,2]
[348630687,1736691033397,-500.0,0.00019178,2]
[348630688,1736691033406,-297.98130536,0.00019178,2]
[348630689,1736691033415,-500.0,0.00019178,2]
[348630690,1736691033425,-502.62323616,0.00019178,2]
[348630691,1736691033435,-500.0,0.00019178,2]
[348630692,1736691033444,-412.45629019,0.00019178,2]
[348630693,1736691033455,-500.0,0.00019178,2]
[348630694,1736691033464,-500.0,0.00019178,2]
[348630695,1736691033474,-500.0,0.00019178,2]
[348630696,1736691033484,-500.0,0.00019178,2]
[348630698,1736691033494,-500.0,0.00019178,2]
[348630700,1736691033504,-500.0,0.00019178,2]
[348630702,1736691033513,-500.0,0.00019178,2]
[348630704,1736691033523,-500.0,0.00019178,2]
[348630706,1736691033532,-502.57867064,0.00019178,2]
[348630708,1736691033542,-500.0,0.00019178,2]
[348630710,1736691033553,-497.93734546,0.00019178,2]
[348630712,1736691033564,-500.0,0.00019178,2]
[348630714,1736691033573,-500.0,0.00019178,2]
[348630716,1736691033583,-500.0,0.00019178,2]
[348630718,1736691033592,-500.0,0.00019178,2]
[348630720,1736691033602,-500.0,0.00019178,2]
[348630722,1736691033612,-500.0,0.00019178,2]
[348630724,1736691033621,-284.70825253,0.00019178,2]
[348630726,1736691033631,-151.0,0.00019178,2]
[348630728,1736691033641,-151.0,0.00019178,2]
[348630730,1736691033650,-151.763892,0.00019178,2]
[348630732,1736691033659,-500.0,0.00019178,2]
[348630734,1736691033669,-500.0,0.00019178,2]
[348630736,1736691033678,-236.52116316,0.00019178,2]
[348630738,1736691033687,-501.66843595,0.00019178,2]
[348630740,1736691033696,-500.0,0.00019178,2]
[348630742,1736691033706,-500.0,0.00019178,2]
[348630744,1736691033716,-500.0,0.00019178,2]
[348630746,1736691033726,-500.0,0.00019178,2]
[348630748,1736691033735,-500.0,0.00019178,2]
[348630750,1736691033745,-500.0,0.00019178,2]
[348630752,1736691033755,-500.0,0.00019178,2]
[348630754,1736691033764,-500.0,0.00019178,2]
[348630756,1736691033775,-500.0,0.00019178,2]
[348630759,1736691033784,-500.0,0.00019178,2]
[348630761,1736691033793,-500.0,0.00019178,2]
[348630763,1736691033803,-500.0,0.00019178,2]
[348630765,1736691033812,-500.0,0.00019178,2]
[348630767,1736691033822,-500.0,0.00019178,2]
[348630769,1736691033831,-500.0,0.00019178,2]
[348630770,1736691033840,-500.0,0.00019178,2]
[348630773,1736691033849,-500.0,0.00019178,2]
[348630774,1736691033858,-585.37,0.00019178,2]
[348630777,1736691033868,-500.0,0.00019178,2]
[348630778,1736691033877,-310.00981694,0.00019178,2]
[348630780,1736691033886,-528.35602171,0.00019178,2]
[348630783,1736691033897,-500.0,0.00019178,2]
[348630785,1736691033907,-500.0,0.00019178,2]
[348630787,1736691033917,-500.0,0.00019178,2]
[348630789,1736691033927,-500.0,0.00019178,2]
[348630791,1736691033938,-500.0,0.00019178,2]
[348630793,1736691033947,-247.04981872,0.00019178,2]
[348630795,1736691033958,-388.96718984,0.00019178,2]
[348630797,1736691033967,-500.0,0.00019178,2]
[348630799,1736691033978,-504.64594482,0.00019178,2]
[348630801,1736691033988,-500.0,0.00019178,2]
[348630803,1736691033998,-500.0,0.00019178,2]
[348630805,1736691034007,-1000.0,0.00019178,2]
[348630807,1736691034019,-500.0,0.00019178,2]
[348630809,1736691034029,-500.0,0.00019178,2]
[348630811,1736691034038,-500.0,0.00019178,2]
[348630813,1736691034047,-188.0,0.00019178,2]
[348630815,1736691034057,-500.0,0.00019178,2]
[348630817,1736691034067,-500.0,0.00019178,2]
[348630819,1736691034076,-500.0,0.00019178,2]
[348630821,1736691034086,-500.0,0.00019178,2]
[348630823,1736691034096,-500.0,0.00019178,2]
[348630825,1736691034105,-500.0,0.00019178,2]
[348630827,1736691034115,-500.0,0.00019178,2]
[348630829,1736691034124,-500.0,0.00019178,2]
[348630831,1736691034134,-500.0,0.00019178,2]
[348630833,1736691034143,-1000.0,0.00019178,2]
[348630835,1736691034153,-500.0,0.00019178,2]
[348630837,1736691034162,-500.0,0.00019178,2]
[348630838,1736691034172,-500.0,0.00019178,2]
[348630839,1736691034181,-183.83019569,0.00019178,2]
[348630841,1736691034190,-500.0,0.00019178,2]
[348630843,1736691034199,-500.0,0.00019178,2]
[348630845,1736691034210,-500.0,0.00019178,2]
[348630847,1736691034219,-500.0,0.00019178,2]
[348630849,1736691034228,-326.14161402,0.00019178,2]
[348630851,1736691034238,-500.0,0.00019178,2]
[348630853,1736691034248,-500.0,0.00019178,2]
[348630855,1736691034258,-500.0,0.00019178,2]
[348630857,1736691034268,-500.0,0.00019178,2]
[348630859,1736691034277,-500.0,0.00019178,2]
[348630861,1736691034286,-500.0,0.00019178,2]
[348630863,1736691034295,-500.0,0.00019178,2]
[348630865,1736691034305,-500.0,0.00019178,2]
[348630867,1736691034314,-500.0,0.00019178,2]
[348630869,1736691034323,-500.0,0.00019178,2]
[348630871,1736691034332,-503.67487465,0.00019178,2]
[348630873,1736691034342,-500.0,0.00019178,2]
[348630875,1736691034352,-500.0,0.00019178,2]
[348630877,1736691034361,-152.03393793,0.00019178,2]
[348630879,1736691034371,-525.08447721,0.00019178,2]
[348630881,1736691034381,-922.44,0.00019178,2]
[348630883,1736691034390,-513.78033632,0.00019178,2]
[348630885,1736691034399,-500.0,0.00019178,2]
[348630887,1736691034409,-197.08290386,0.00019178,2]
[348630889,1736691034418,-500.0,0.00019178,2]
[348630891,1736691034427,-500.0,0.00019178,2]
[348630893,1736691034436,-594.39,0.00019178,2]
[348630895,1736691034446,-500.0,0.00019178,2]
[348630897,1736691034456,-500.0,0.00019178,2]
[348630899,1736691034466,-500.0,0.00019178,2]
[348630901,1736691034475,-500.0,0.00019178,2]
[348630903,1736691034485,-500.0,0.00019178,2]
[348630905,1736691034495,-500.0,0.00019178,2]
[348630907,1736691034504,-469.46,0.00019178,2]
[348630909,1736691034513,-500.0,0.00019178,2]
[348630911,1736691034522,-500.0,0.00019178,2]
[348630913,1736691034532,-500.0,0.00019178,2]
[348630915,1736691034541,-251.29021777,0.00019178,2]
[348630917,1736691034553,-500.0,0.00019178,2]
[348630919,1736691034563,-500.0,0.00019178,2]
[348630921,1736691034572,-500.0,0.00019178,2]
[348630923,1736691034581,-500.0,0.00019178,2]
[348630925,1736691034590,-500.0,0.00019178,2]
[348630927,1736691034599,-500.0,0.00019178,2]
[348630929,1736691034609,-500.0,0.00019178,2]
[348630931,1736691034618,-500.0,0.00019178,2]
[348630933,1736691034627,-500.0,0.00019178,2]
[348630935,1736691034636,-571.62281696,0.00019178,2]
[348630937,1736691034646,-500.0,0.00019178,2]
[348630939,1736691034655,-500.0,0.00019178,2]
[348630941,1736691034665,-500.0,0.00019178,2]
[348630943,1736691034674,-151.0,0.00019178,2]
[348630945,1736691034683,-151.0,0.00019178,2]
[348630947,1736691034692,-500.0,0.00019178,2]
[348630949,1736691034702,-500.0,0.00019178,2]
[348630951,1736691034712,-502.01,0.00019178,2]
[348630953,1736691034721,-500.0,0.00019178,2]
[348630955,1736691034732,-500.0,0.00019178,2]
[348630957,1736691034742,-500.0,0.00019178,2]
[348630960,1736691034752,-501.60424759,0.00019178,2]
[348630962,1736691034761,-500.0,0.00019178,2]
[348630964,1736691034771,-505.42408712,0.00019178,2]
[348630966,1736691034781,-500.0,0.00019178,2]
[348630968,1736691034790,-500.0,0.00019178,2]
[348630970,1736691034799,-500.58115671,0.00019178,2]
[348630972,1736691034809,-500.0,0.00019178,2]
[348630974,1736691034817,-500.0,0.00019178,2]
[348630976,1736691034827,-500.0,0.00019178,2]
[348630978,1736691034836,-500.0,0.00019178,2]
[348630980,1736691034845,-500.0,0.00019178,2]
[348630982,1736691034854,-500.0,0.00019178,2]
[348630984,1736691034864,-177.91,0.00019178,2]
[348630986,1736691034873,-598.95669132,0.00019178,2]
[348630988,1736691034882,-500.0,0.00019178,2]
[348630989,1736691034892,-500.0,0.00019178,2]
[348630991,1736691034902,-502.26084643,0.00019178,2]
[348630993,1736691034912,-500.0,0.00019178,2]
[348630995,1736691034921,-500.0,0.00019178,2]
[348630997,1736691034930,-500.0,0.00019178,2]
[348630999,1736691034940,-500.0,0.00019178,2]
[348631001,1736691034949,-500.0,0.00019178,2]
[348631003,1736691034961,-594.89545264,0.00019178,2]
[348631005,1736691034971,-500.0,0.00019178,2]
[348631007,1736691034980,-501.29567966,0.00019178,2]
[348631009,1736691034989,-500.0,0.00019178,2]
[348631011,1736691034998,-512.24818811,0.00019178,2]
[348631013,1736691035008,-500.0,0.00019178,2]
[348631015,1736691035017,-500.0,0.00019178,2]
[348631017,1736691035026,-500.0,0.00019178,2]
[348631019,1736691035035,-500.0,0.00019178,2]
[348631021,1736691035044,-500.0,0.00019178,2]
[348631023,1736691035054,-423.93375257,0.00019178,2]
[348631025,1736691035063,-504.6851846,0.00019178,2]
[348631027,1736691035072,-500.0,0.00019178,2]
[348631029,1736691035081,-500.0,0.00019178,2]
[348631031,1736691035090,-500.0,0.00019178,2]
[348631033,1736691035099,-500.0,0.00019178,2]
[348631035,1736691035108,-241.68578211,0.00019178,2]
[348631037,1736691035118,-500.0,0.00019178,2]
[348631039,1736691035127,-500.0,0.00019178,2]
[348631041,1736691035136,-500.0,0.00019178,2]
[348631043,1736691035146,-500.0,0.00019178,2]
[348631045,1736691035156,-500.0,0.00019178,2]
[348631047,1736691035166,-500.0,0.00019178,2]
[348631049,1736691035175,-500.0,0.00019178,2]
[348631051,1736691035184,-68.24662176,0.00019178,2]
[348631054,1736691035203,-431.75337824,0.00019178,2]
[348631056,1736691035213,-500.0,0.00019178,2]
[348631058,1736691035222,-500.0,0.00019178,2]
[348631060,1736691035230,-500.0,0.00019178,2]
[348631061,1736691035240,-500.0,0.00019178,2]
[348631063,1736691035249,-500.0,0.00019178,2]
[348631065,1736691035258,-281.33235747,0.00019178,2]
[348631067,1736691035269,-427.42094878,0.00019178,2]
[348631069,1736691035283,-56.80669375,0.00019178,2]
[348631071,1736691035292,-695.93,0.00019178,2]
[348631073,1736691035305,-500.0,0.00019178,2]
[348631075,1736691035315,-500.0,0.00019178,2]
[348631076,1736691035324,-500.0,0.00019178,2]
[348631077,1736691035334,-151.0,0.00019178,2]
[348631078,1736691035343,-500.0,0.00019178,2]
[348631079,1736691035353,-500.0,0.00019178,2]
[348631080,1736691035363,-500.0,0.00019178,2]
[348631081,1736691035372,-500.0,0.00019178,2]
[348631082,1736691035381,-500.0,0.00019178,2]
[348631083,1736691035391,-500.0,0.00019178,2]
[348631084,1736691035400,-500.0,0.00019178,2]
[348631085,1736691035410,-658.73,0.00019178,2]
[348631086,1736691035419,-500.0,0.00019178,2]
[348631087,1736691035429,-3668.07,0.00019178,2]
[348631088,1736691035438,-500.0,0.00019178,2]
[348631089,1736691035448,-500.0,0.00019178,2]
[348631090,1736691035459,-500.0,0.00019178,2]
[348631091,1736691035469,-501.03632925,0.00019178,2]
[348631092,1736691035479,-500.0,0.00019178,2]
[348631093,1736691035489,-500.0,0.00019178,2]
[348631094,1736691035498,-501.16352778,0.00019178,2]
[348631095,1736691035507,-500.0,0.00019178,2]
[348631096,1736691035517,-500.0,0.00019178,2]
[348631097,1736691035526,-500.0,0.00019178,2]
[348631098,1736691035535,-500.0,0.00019178,2]
[348631099,1736691035545,-500.0,0.00019178,2]
[348631100,1736691035558,-500.0,0.00019178,2]
[348631101,1736691035567,-500.0,0.00019178,2]
[348631102,1736691035576,-500.0,0.00019178,2]
[348631103,1736691035586,-494.14944118,0.00019178,2]
[348631104,1736691035597,-500.0,0.00019178,2]
[348631105,1736691035607,-500.0,0.00019178,2]
[348631106,1736691035617,-434.26450825,0.00019178,2]
[348631107,1736691035731,-65.73549175,0.00019178,2]
[348631108,1736691035742,-500.0,0.00019178,2]
[348631109,1736691035752,-500.0,0.00019178,2]
[348631110,1736691035763,-500.0,0.00019178,2]
[348631111,1736691035773,-500.0,0.00019178,2]
[348631112,1736691035783,-734.97,0.00019178,2]
[348631113,1736691035792,-644.24592478,0.00019178,2]
[348631114,1736691035801,-500.00000001,0.00019178,2]
[348631115,1736691035812,-500.0,0.00019178,2]
[348631116,1736691035821,-500.0,0.00019178,2]
[348631117,1736691035831,-151.0,0.00019178,2]
[348631118,1736691035841,-151.0,0.00019178,2]
[348631119,1736691035851,-500.0,0.00019178,2]
[348631120,1736691035860,-151.0,0.00019178,2]
[348631121,1736691035870,-494.77958346,0.00019178,2]
[348631122,1736691035883,-5.22041654,0.00019178,2]
[348631123,1736691035893,-500.0,0.00019178,2]
[348631124,1736691035902,-212.58890195,0.00019178,2]
[348631125,1736691035912,-500.0,0.00019178,2]
[348631126,1736691035922,-500.74167919,0.00019178,2]
[348631127,1736691035933,-500.0,0.00019178,2]
[348631128,1736691035942,-500.0,0.00019178,2]
[348631129,1736691035951,-500.0,0.00019178,2]